Cogmind - Beta 9.5 @@@ ROGUE MODE // 2020.04.10 @ 11:57:15 Player: CreepyD Result: Destroyed by as-41874 with Assembled Maul Performance ------------- Evolutions (0) 0 Regions Visited (2) 400 Robots Destroyed (9) 45 Value Destroyed (42) 42 Prototype IDs (0) 0 Alien Tech Used (0) 0 Bonus (0) 0 TOTAL SCORE: 487 Bonus ------- None Cogmind --------- Core Integrity 0/250 Matter 278/300 Energy 84/100 System Corruption 3% Temperature Cool (0) Movement Core (50) Location -10/Mines Parts ------- > --- POWER (1) -------- (None) > --- PROPULSION (2) --- (None) > --- UTILITY (2) ------ Improved ECM Suite > --- WEAPON (2) ------- (None) > --- INVENTORY (4) ---- Ion Engine Small Storage Unit Improved Terrain Scanner Peak State ------------ > --- POWER ------------ Nuclear Core > --- PROPULSION ------- Light Treads Light Treads > --- UTILITY ---------- Improved Heat Sink Small Storage Unit > --- WEAPON ----------- Particle Gun Assault Cannon > --- INVENTORY -------- Ion Engine Improved Terrain Scanner Transmission Jammer Particle Gun Particle Gun [Rating: 15] Favorites ----------- Power Ion Engine Engine Ion Engine Power Core Nuclear Core Propulsion Light Treads Treads Light Treads Utility Improved Terrain Scanner Device Improved Terrain Scanner Storage Medium Matter Pod Weapon Particle Gun Energy Gun Particle Gun Ballistic Gun Assault Rifle Ballistic Cannon Assault Cannon Build | -11 -10 -10 ------- Run | Scr Mat Min Slots Evolved . | . . . Power . | . . . Propulsion . | . . . Utility . | . . . Weapon . | . . . Parts Attached 19 | 7 4 8 Power 2 | 1 . 1 Engine 1 | 1 . . Core 1 | . . 1 Reactor . | . . . Propulsion 2 | 2 . . Treads 2 | 2 . . Leg . | . . . Wheel . | . . . Hover . | . . . Flight . | . . . Utility 7 | 2 1 4 Device 4 | . 1 3 Storage 3 | 2 . 1 Processor . | . . . Hackware . | . . . Protection . | . . . Artifact . | . . . Weapon 8 | 2 3 3 Energy Gun 6 | 1 3 2 Energy Cannon . | . . . Ballistic Gun 1 | 1 . . Ballistic Cannon 1 | . . 1 Launcher . | . . . Special Weapon . | . . . Impact Weapon . | . . . Slashing Weapon . | . . . Piercing Weapon . | . . . Special Melee Weapon . | . . . Unidentified Prototypes . | . . . Parts Lost 8 | . . 8 Power 1 | . . 1 Propulsion 2 | . . 2 Utility 1 | . . 1 Weapon 4 | . . 4 Highest Loss Streak 6 | . . 6 Average Slot Usage (%) 91 | . 99 85 Engine 10 | . 14 8 Core 2 | . . 3 Treads 25 | . 28 23 Device 13 | . 13 13 Storage 13 | . 14 11 Energy Gun 22 | . 26 19 Ballistic Cannon 1 | . . 3 Naked Turns 29 | . . 29 Heaviest Build 20 | 14 14 20 Greatest Support 40 | 40 40 40 Greatest Overweight (x) . | . . . Average Overweight (x) . | . . . Largest Inventory Capacity 6 | 6 6 6 Average Capacity 4 | 5 4 4 Most Carried 6 | 4 4 6 Average Carried 3 | . 3 4 Final Capacity 6 | 6 4 4 Final Carried 4 | 1 4 3 Class Distribution -------------------- 100% | Mutant Dominant Class ---------------- Mutant | -10/Materials Mutant | -10/Mines Resources | -11 -10 -10 ----------- Run | Scr Mat Min Matter Collected 426 | 188 40 198 Remotely . | . . . Salvage Created 120 | 24 40 56 Parts 9 | 3 5 1 Haulers Intercepted . | . . . Recyclers Shooed . | . . . Parts Field Recycled . | . . . Retrieved Matter . | . . . Parts Self-Destructed . | . . . Prevented . | . . . Kills | -11 -10 -10 ------- Run | Scr Mat Min Combat Hostiles Destroyed 7 | . 3 4 Guns 4 | . 3 1 Cannons 3 | . . 3 Classes Destroyed 3 | 1 1 1 Worker 2 | 1 . 1 Swarmer 3 | . 3 . Assembled 4 | . . 4 Best Kill Streak 4 | 1 2 4 Combat Bots Only 3 | . 2 3 Max Kills in Single Turn 2 | 1 1 2 Gunslinging . | . . . Exploded . | . . . Melee . | . . . Uniques/NPCs Destroyed . | . . . Combat | -11 -10 -10 -------- Run | Scr Mat Min Damage Taken 1063 | . 34 1029 Core 262 | . . 262 Absorbed by Shields . | . . . Core Remaining (%) 100 | 100 . . Volleys Fired 23 | 2 4 17 Largest 2 | 2 2 2 Hottest 130 | 60 130 130 Shots Fired 46 | 4 8 34 Gun 34 | 4 8 22 Cannon 12 | . . 12 Launcher . | . . . Special . | . . . Kinetic 14 | 2 . 12 Thermal 32 | 2 8 22 Explosive . | . . . Electromagnetic . | . . . Robot Hit Streak 4 | 1 4 3 Robot Miss Streak 5 | 2 2 5 Penetration Max . | . . . Secondary Targets . | . . . Shots Hit Robots 17 | 1 5 11 Core Hits 12 | 1 3 8 Critical Hits . | . . . Critical Kills . | . . . Critical Parts Destroyed . | . . . Melee Attacks . | . . . Impact . | . . . Slashing . | . . . Piercing . | . . . Sneak Attacks . | . . . Combat Hostiles . | . . . Follow-up Attacks . | . . . Damage Inflicted 320 | 24 72 224 Guns 215 | 24 72 119 Cannons 95 | . . 95 Explosions . | . . . Melee . | . . . Ramming 10 | . . 10 Kinetic 109 | 14 . 95 Thermal 201 | 10 72 119 Explosive . | . . . Electromagnetic . | . . . Impact . | . . . Slashing . | . . . Piercing . | . . . Highest Corruption 3 | . 2 3 Average Corruption 2 | . 2 2 Corruption Purged . | . . . Effects 9 | . 4 5 Message Errors 3 | . 2 1 Matter Fused 2 | . . 2 Heat Flow Errors 2 | . 2 . Energy Discharges 2 | . . 2 Overload Shots . | . . . Overflow Damage 20 | . . 20 Projectiles 20 | . . 20 Explosions . | . . . Melee . | . . . Knockbacks . | . . . Impact . | . . . Kinetic . | . . . Secondary . | . . . Self-Inflicted Damage 5 | . . 5 Shots . | . . . Rammed 2 | . . 2 Targets Rammed 2 | . . 2 Kicked . | . . . Crushed . | . . . Highest Temperature 207 | . 203 207 Average Temperature 87 | . 77 93 Received Heat Transfer 40 | . . 40 Siege Activations . | . . . Robots Corrupted . | . . . Combat Hostiles . | . . . Parts Fried . | . . . Impact Corruptions . | . . . Robots Melted . | . . . Combat Hostiles . | . . . Parts Melted . | . . . Heat Transferred 506 | 25 185 296 Parts Sabotaged . | . . . Parts Stolen . | . . . Parts Stripped . | . . . Power Chain Reactions . | . . . Missiles Intercepted . | . . . Alert | -11 -10 -10 ------- Run | Scr Mat Min Peak Influence 73 | 5 73 43 Average Influence 36 | . 55 30 Maximum Alert Level . | . . . Low Security (%) 100 | 100 100 100 Level 1 . | . . . Level 2 . | . . . Level 3 . | . . . Level 4 . | . . . Level 5 . | . . . High Security . | . . . Max Security . | . . . Squads Dispatched 1 | . . 1 Investigation 1 | . . 1 Extermination . | . . . Reinforcement . | . . . Assault . | . . . Garrison . | . . . Intercept . | . . . Construction Impeded . | . . . Haulers Reinforced . | . . . Stealth | -11 -10 -10 --------- Run | Scr Mat Min Distress Signals . | . . . Communications Jammed . | . . . Distress Signals . | . . . Times Spotted 26 | . 4 22 Peak Tracking Total 11 | . 2 11 Tactical Retreats 6 | . 1 5 Traps | -11 -10 -10 ------- Run | Scr Mat Min Traps Triggered 1 | . 1 . Indirectly . | . . . Trap Hack Attempts . | . . . Triggered . | . . . Disarmed . | . . . Reprogrammed . | . . . Reused . | . . . Traps Extracted . | . . . Installed . | . . . Triggered . | . . . Machines | -11 -10 -10 ---------- Run | Scr Mat Min Machines Disabled 1 | . . 1 Max in Single Turn 1 | . . 1 Machines Sabotaged . | . . . Garrisons Compromised . | . . . Overloaded Fab Kills . | . . . Fab Network Shutdowns . | . . . Hacking | -11 -10 -10 --------- Run | Scr Mat Min Machines Accessed 2 | . 1 1 Terminals 1 | . 1 . Fabricators . | . . . Repair Stations . | . . . Recycling Units . | . . . Scanalyzers . | . . . Garrison Access . | . . . Total Hacks 3 | . 2 1 Successful 1 | . . 1 Failed 2 | . 2 . Catastrophic 1 | . 1 . Database Lockouts . | . . . Manual 2 | . 1 1 Terminals 2 | . 2 . Fabricators . | . . . Repair Stations . | . . . Recycling Units . | . . . Scanalyzers . | . . . Garrison Access . | . . . Terminal Hacks 1 | . . 1 Open Door 1 | . . 1 Fabricator Hacks . | . . . Repair Station Hacks . | . . . Recycling Unit Hacks . | . . . Scanalyzer . | . . . Garrison Access Hacks . | . . . Unauthorized Hacks . | . . . Terminals . | . . . Fabricators . | . . . Repair Stations . | . . . Recycling Units . | . . . Scanalyzers . | . . . Garrison Access . | . . . Data Cores Recovered . | . . . Used . | . . . Hacking Detections 1 | . 1 . Full Trace Events . | . . . Feedback Events . | . . . Feedback Blocked . | . . . Robot Schematics Acquired . | . . . Robots Built . | . . . Matter . | . . . Time . | . . . Total Robot Build Rating . | . . . Part Schematics Acquired . | . . . Parts Built . | . . . Matter . | . . . Time . | . . . Total Part Build Rating . | . . . Parts Repaired . | . . . Time . | . . . Parts Recycled . | . . . Recycled Matter . | . . . Retrieved Matter . | . . . Retrieved Components . | . . . Parts Scanalyzed . | . . . Part Schematics Acquired . | . . . Parts Damaged . | . . . Bothacking | -11 -10 -10 ------------ Run | Scr Mat Min Used RIF Installer . | . . . Robots Hacked . | . . . Non-combat . | . . . Combat . | . . . Robot Hacks Applied . | . . . Relay Couplers Released . | . . . Robots Rewired . | . . . Allies Hacked . | . . . Hacks Repelled . | . . . Allies | -11 -10 -10 -------- Run | Scr Mat Min Total Allies 2 | . . 2 Largest Group 2 | . . 2 Highest-Rated Group 43 | . . 43 Highest-Rated Ally 31 | . . 31 Total Orders . | . . . Ally Attacks 2 | . . 2 Total Damage 21 | . . 21 Kills 1 | . . 1 Allies Corrupted 2 | . . 2 Allies Melted . | . . . Intel | -11 -10 -10 ------- Run | Scr Mat Min Robot Analysis Total . | . . . Derelict Logs Recovered 1 | . . 1 Drone Launches . | . . . Drone Recoveries . | . . . Exploration | -11 -10 -10 ------------- Run | Scr Mat Min Turns Passed 1030 | 116 381 533 Spaces Moved 514 | 65 80 369 Core 142 | 7 . 135 Treads 372 | 58 80 234 Legs . | . . . Wheels . | . . . Hover . | . . . Flight . | . . . Fastest Speed 50 | 50 160 50 Average Speed 129 | 148 160 119 Slowest Speed 160 | 160 160 160 Overloaded Moves . | . . . Propulsion Burnouts . | . . . Robots Hopped . | . . . Cave-ins Triggered . | . . . Exploration Rate (%) 35 | 5 25 75 Regions Visited 2 Branch Regions 1 Pre-discovered Areas 1 | . . 1 Known Exits Taken . | . . . Unknown Exits Taken 2 | 1 1 . Scrap Searched 2 | . . 2 Spaces Dug . | . . . Terrain Destroyed 3 | . . 3 Melee . | . . . Projectile 3 | . . 3 AOE . | . . . Actions | -11 -10 -10 --------- Run | Scr Mat Min Total 831 | 81 325 425 Wait 249 | . 229 20 Move 512 | 64 79 369 Hop . | . . . Pick Up 19 | 8 6 5 Fast Attach . | . . . Attach 11 | 7 1 3 Detach . | . . . Swap 8 | . 3 5 Drop 7 | . 3 4 Fire 23 | 2 4 17 Melee . | . . . Ram 2 | . . 2 Kick . | . . . Crush . | . . . Escape Stasis . | . . . Rewire . | . . . Trap . | . . . Miscellaneous . | . . . Route ------- -11/Scrapyard -10/Materials -10/Mines History --------- Turn | Location | Event 7 | -11/Scrapyard | Discovered new exit (range 15) 117 | -11/Scrapyard | Entered Materials 303 | -10/Materials | Build established: Mutant 478 | -10/Materials | Discovered new exit (range 11) 498 | -10/Materials | Entered Mines 785 | -10/Mines | Assembled infested the area 790 | -10/Mines | Assisted by a Guerilla fighting off Assembled 793 | -10/Mines | Met a Derelict shopkeep closing up shop 912 | -10/Mines | Learned location of Storage (-8) 942 | -10/Mines | Found a hidden stash of uninstalled traps 958 | -10/Mines | Core integrity fell below 50% 962 | -10/Mines | Core integrity fell below 20% 993 | -10/Mines | Lost 6 parts (1p2n1u2w) 1031 | -10/Mines | Destroyed by as-41874 with Assembled Maul Last Messages --------------- 00920_ Searching scrap... 00920_ Found 48 Matter. 00920_ Found Med. Battery. 00920_ Found Terrain Scanner. 00920_ Found Med. Matter Pod. 00920_ Found ECM Suite. 00921_ Acquired 4 matter. 00942_ A stash of uninstalled traps is hidden here! 00947_ Particle Gun destroyed. 00948_ Assault Cannon destroyed. 00948_ Lgt. Treads destroyed. 00956_ Nuclear Core destroyed. 00958_ Lgt. Treads destroyed. 00960_ Slammed into as-01468. 00962_ Imp. Heat Sink destroyed. 00968_ Dropped Transmission Jammer. 00977_ Slammed into as-71264. 00977_ Destabilizing: System corrupted (+1). 00991_ System corrupted: Matter fused (-7). 01019_ System corrupted: Matter fused (-5). Map ----- +----------------------------------------------------+ | ????####?### ###"%###!=###########??????????????? | | ????#"!### !% =*%!!%**% * #??????????????? | | #???#"=! #X ######%%=!= =%!%= #??????????????? | | ????#" = ##????###!######## #??????????????? | | ????#" #???????# =#???????????????????????? | | ????#"/! # ##?????? #??????????????????????? | | ????#" ### #????? #??????????????????????? | | ########?# =% #?????? #??????????????????????? | | % #??# #????? #??????????????????????? | | ##### #?## ##???? #??????????????????????? | | ??#?# ### #????? #??????????????????????? | | ###?# #???? *% ??????????????????????? | | ### #???? %%! ??????????????????????? | | ######## #??? =%!#??????????????????????? | | ###???## #???# !%%#??????????????????????? | | # ##????# #????##%*#??????????????????????? | | ## ##???# ##?????#**#??????????????????????? | | ?## ###??# ##??????#%!#??????????????????????? | | #?## ###?###????#??#%=#??????????????????????? | | #### #????????????#!%#??????????????????????? | | #????????????#%=#?#????????????????????? | | #????######??# |#?????????????????#????? | | ###### ##????# ?#%*#????????????????#?????? | | ?????# ##????? %! #%!#??????????????????????? | | #????# ###??? ???aa= % ######????????#?????#??? | | ##???# #??#???????#a@ #???????????????#?? | | ##??## #????????## #### #????####?????#???? | | #???## #???????## #??? #???## ##????????? | | #????## #????????# ##?## ???# ###??#???? | | ##????### ###???#???# ###?# #???# ##???### | | #???????####?#???????# ### #???# #???## | | #???????????????????## #?# #???# ##??# | | #?#????#???#???????## #?# ##?## #??# | | ######?????????????## ### #??# #?## | | ### ##???????????## ## #### ## #?# | | ## ####????????# ### ## ##??###?# | | ##??????## ##??# ##??????## | | #####?## ##?## ####????### | | #### ### ##??????# | | ######?# | | ### # "" ### | | ##?## ### ####### ## | | ##??####?## ##?#???## #### """ | | #????????######???????# ##??#### | | #????????????????????# #??????## | | ?????????????????????# #???????####### ##### | | ??????#??????????????# #?????????#??#####???? | | ????????????????????? #???????????????????? | | ????????#???????????# #?#??????????#??????? | | ??????????????#?????## ##??????#??????????#?# | +----------------------------------------------------+ Best States ------------- Heat Dissipation 39 Energy Generation 14 Energy Capacity 250 Matter Stores 300 Matter Capacity 400 Sight Range 16 Terrain Scan Range 16 Terrain Scan Density 10 ECM Strength 2 Jamming Range 8 Evasion (%) 50 Recoil Reduction 2 Item Schematics ----------------- None Robot Schematics ------------------ None Fabricated ------------ Nothing Alien Tech Used ----------------- None Achievements -------------- None Challenges ------------ None Game ------ Seed GatlingAngularBarrier Manual? 0 Play Time 00:15:33 Cumulative 14.4 hours Start 2020.04.10 @ 11:37:47 End 2020.04.10 @ 11:57:15 Sessions 1 Manual Loads 0 Difficulty Rogue Special Mode None Game No. 16 Rogue 15 Adventurer 1 Explorer 0 Win Type - Total 0 Types 0/0/0/0/0/0/0 Lore% 17 Gallery% 26 Achievement% 21 Wizard Run 0 Options --------- ASCII 0 Keyboard 0 Movement Numpad Keybinds 0 Fullscreen 0 Font 16/Smallcaps Map View 76x50 Tactical HUD 1 Map Filters NONE Filters NONE Steam 1 RUN: 9d17a700-feca-44b4-adf7-d26235813bf7